fUSD/lending_fUSD_20240104
["ID","MTS","AMOUNT","RATE_DAILY","PERIOD"]
[310193778,1704395456633,-500.0,0.00033972,2]
[310193779,1704395456642,-500.0,0.00033972,2]
[310193780,1704395456651,-4180.43,0.00033972,2]
[310193781,1704395456660,-527.44,0.00033972,2]
[310193782,1704395456669,-500.0,0.00033972,2]
[310193783,1704395456679,-1287.29,0.00033972,2]
[310193784,1704395456690,-649.63,0.00033972,2]
[310193785,1704395456699,-673.21,0.00033972,2]
[310193786,1704395456708,-500.0,0.00033972,2]
[310193787,1704395456718,-500.0,0.00033972,2]
[310193788,1704395456727,-500.0,0.00033972,2]
[310193789,1704395456736,-500.0,0.00033972,2]
[310193790,1704395456746,-760.73,0.00033972,2]
[310193791,1704395456756,-500.0,0.00033972,2]
[310193792,1704395456765,-500.0,0.00033972,2]
[310193793,1704395456774,-1131.3,0.00033972,2]
[310193794,1704395456784,-500.0,0.00033972,2]
[310193795,1704395456793,-500.0,0.00033972,2]
[310193796,1704395456802,-500.0,0.00033972,2]
[310193797,1704395456812,-1301.5,0.00033972,2]
[310193798,1704395456821,-500.0,0.00033972,2]
[310193799,1704395456831,-966.93,0.00033972,2]
[310193800,1704395456840,-767.71,0.00033972,2]
[310193801,1704395456850,-2224.59,0.00033972,2]
[310193802,1704395456859,-601.14,0.00033972,2]
[310193803,1704395456868,-996.88,0.00033972,2]
[310193804,1704395456878,-500.0,0.00033972,2]
[310193805,1704395456887,-1166.75,0.00033972,2]
[310193806,1704395456896,-5336.54,0.00033972,2]
[310193807,1704395456905,-792.9,0.00033972,2]
[310193808,1704395456914,-1019.44,0.00033972,2]
[310193809,1704395456923,-500.0,0.00033972,2]
[310193810,1704395456933,-500.0,0.00033972,2]
[310193811,1704395456942,-561.14,0.00033972,2]
[310193812,1704395456951,-804.87,0.00033972,2]
[310193813,1704395456961,-6607.68,0.00033972,2]
[310193814,1704395456971,-2923.77,0.00033972,2]
[310193815,1704395456982,-513.7,0.00033972,2]
[310193816,1704395456990,-587.68,0.00033972,2]
[310193817,1704395457000,-1870.97,0.00033972,2]
[310193818,1704395457011,-500.0,0.00033972,2]
[310193819,1704395457020,-1728.16,0.00033972,2]
[310193820,1704395457029,-500.0,0.00033972,2]
[310193821,1704395457040,-708.91,0.00033972,2]
[310193822,1704395457049,-3044.41,0.00033972,2]
[310193823,1704395457058,-500.0,0.00033972,2]
[310193824,1704395457068,-390.29045067,0.00033972,2]
[310193825,1704395457077,-500.0,0.00033972,2]
[310193826,1704395457086,-272.94,0.00033972,2]
[310193827,1704395457095,-500.0,0.00033972,2]
[310193828,1704395457105,-1250.57,0.00033972,2]
[310193829,1704395457116,-500.0,0.00033972,2]
[310193830,1704395457125,-669.26,0.00033972,2]
[310193831,1704395457134,-500.0,0.00033972,2]
[310193832,1704395457144,-500.0,0.00033972,2]
[310193833,1704395457182,-500.0,0.00033972,2]
[310193834,1704395457192,-500.0,0.00033972,2]
[310193835,1704395457201,-602.81,0.00033972,2]
[310193836,1704395457211,-500.0,0.00033972,2]
[310193837,1704395457220,-500.0,0.00033972,2]
[310193838,1704395457230,-640.2,0.00033972,2]
[310193839,1704395457240,-725.02,0.00033972,2]
[310193840,1704395457249,-500.0,0.00033972,2]
[310193841,1704395457258,-4976.48,0.00033972,2]
[310193842,1704395457268,-758.41,0.00033972,2]
[310193843,1704395457277,-1594.66,0.00033972,2]
[310193844,1704395457286,-2205.19,0.00033972,2]
[310193845,1704395457298,-500.0,0.00033972,2]
[310193846,1704395457307,-1107.35,0.00033972,2]
[310193847,1704395457317,-560.12,0.00033972,2]
[310193848,1704395457326,-596.68,0.00033972,2]
[310193849,1704395457335,-1681.09,0.00033972,2]
[310193850,1704395457344,-1016.91,0.00033972,2]
[310193851,1704395457354,-500.0,0.00033972,2]
[310193852,1704395457363,-755.51,0.00033972,2]
[310193853,1704395457372,-500.0,0.00033972,2]
[310193854,1704395457381,-500.0,0.00033972,2]
[310193855,1704395457390,-657.82,0.00033972,2]
[310193856,1704395457399,-1231.31,0.00033972,2]
[310193857,1704395457408,-536.35,0.00033972,2]
[310193858,1704395457417,-500.0,0.00033972,2]
[310193859,1704395457426,-532.91,0.00033972,2]
[310193860,1704395457436,-500.0,0.00033972,2]
[310193861,1704395457445,-1247.12,0.00033972,2]
[310193862,1704395457455,-500.0,0.00033972,2]
[310193863,1704395457464,-500.0,0.00033972,2]
[310193864,1704395457474,-508.73,0.00033972,2]
[310193865,1704395457483,-604.88233847,0.00033972,2]
[310193866,1704395457492,-500.0,0.00033972,2]
[310193867,1704395457501,-1676.15,0.00033972,2]
[310193868,1704395457512,-500.0,0.00033972,2]
[310193869,1704395457522,-500.0,0.00033972,2]
[310193870,1704395457531,-500.0,0.00033972,2]
[310193871,1704395457540,-1319.57,0.00033972,2]
[310193872,1704395457550,-1836.52,0.00033972,2]
[310193873,1704395457559,-500.0,0.00033972,2]
[310193874,1704395457569,-500.0,0.00033972,2]
[310193875,1704395457578,-805.67,0.00033972,2]
[310193876,1704395457589,-1680.66,0.00033972,2]
[310193877,1704395457599,-100000.0,0.00034,4]
[310193878,1704395457609,-798.75129284,0.00034,4]
[310193879,1704395457620,-12277.0811857,0.00034,2]
[310193880,1704395457936,-273.49,0.00034,2]
[310193881,1704395457949,-569.41898999,0.00034,2]
[310193882,1704395457974,-3657.57995104,0.00034,2]
[310193883,1704395457987,-2610.76996196,0.00034,2]
[310193884,1704395458005,-934.42805225,0.00034,2]
[310193885,1704395458019,-2536.36177618,0.00034,2]
[310193886,1704395458051,-6862.5789837,0.00034,2]
[310193887,1704395458299,-200.0,0.00031082,2]
[310193888,1704395458309,-9032.26670694,0.00034,2]
[310193889,1704395458318,-1000.0,0.00034,4]
[310193890,1704395458329,-6000.0,0.00034,2]
[310193891,1704395458338,-500.0,0.00034,3]
[310193892,1704395458348,-1000.0,0.00034,7]
[310193893,1704395458358,-158.86,0.00034,2]
[310193894,1704395458367,-468.51,0.00034033,2]
[310193895,1704395458376,-162.77,0.00034043,2]
[310193896,1704395458386,-630.2283898,0.00034138,2]
[310193897,1704395458395,-1253.1771,0.00034145,2]
[310193898,1704395458404,-158.05362275,0.00034146,2]
[310193899,1704395458413,-153.84,0.00034208,2]
[310193900,1704395458423,-3246.30527636,0.00034238,14]
[310193901,1704395458432,-14557.2973392,0.00034238,10]
[310193902,1704395458445,-299.5178,0.00034238,10]
[310193903,1704395458734,-82762.5892,0.00032719,2]
[310193904,1704395458744,-6941.83325554,0.00034238,10]
[310193905,1704395458754,-24674.23356073,0.00034238,10]
[310193906,1704395458764,-1670.66496409,0.00034244,4]
[310193907,1704395458774,-302.04851186,0.00034244,4]
[310193908,1704395458784,-500.0,0.00034244,2]
[310193909,1704395458794,-500.0,0.00034244,2]
[310193910,1704395458804,-1000.0,0.00034244,2]
[310193911,1704395458815,-755.58,0.00034244,2]
[310193912,1704395458824,-500.0,0.00034245,2]
[310193913,1704395458834,-1077.85,0.00034245,2]
[310193914,1704395458845,-500.0,0.00034245,2]
[310193915,1704395458855,-5801.51,0.00034245,2]
[310193916,1704395458864,-1092.64,0.00034245,2]
[310193917,1704395458874,-744.73,0.00034245,2]
[310193918,1704395458884,-1622.3,0.00034245,2]
[310193919,1704395458893,-2148.6,0.00034245,2]
[310193920,1704395458903,-1553.83,0.00034245,2]
[310193921,1704395458913,-1185.23,0.00034245,2]
[310193922,1704395458922,-487.7938398,0.00034245,2]
[310193923,1704395458935,-641.94,0.00034245,2]
[310193924,1704395458945,-500.0,0.00034245,2]
[310193925,1704395458956,-1138.12,0.00034245,2]
[310193926,1704395458967,-618.54,0.00034245,2]
[310193927,1704395458976,-2041.9151884,0.00034245,2]
[310193928,1704395458990,-1213.3448116,0.00034245,2]
[310193929,1704395459002,-758.96,0.00034245,2]
[310193930,1704395459012,-500.0,0.00034245,2]
[310193931,1704395459023,-500.0,0.00034245,2]
[310193932,1704395459034,-500.0,0.00034245,2]
[310193933,1704395459045,-500.0,0.00034245,2]
[310193934,1704395459055,-1855.81,0.00034245,2]
[310193935,1704395459066,-1078.37,0.00034245,2]
[310193936,1704395459076,-583.57,0.00034245,2]
[310193937,1704395459087,-500.0,0.00034245,2]
[310193938,1704395459097,-977.53,0.00034245,2]
[310193939,1704395459107,-947.88,0.00034245,2]
[310193940,1704395459118,-1236.46,0.00034245,2]
[310193941,1704395459128,-55188.6086886,0.00034245,3]
[310193942,1704395459141,-1105.525,0.00034245,3]
[310193943,1704395459153,-520.43954995,0.00034245,3]
[310193944,1704395459167,-355.72425126,0.00034245,3]
[310193945,1704395459662,-821.92211711,0.0003,2]
[310193946,1704395459674,-500.0,0.00032876,2]
[310193947,1704395459685,-500.0,0.0003315,2]
[310193948,1704395459698,-500.0,0.00033424,2]
[310193949,1704395459711,-500.0,0.00033698,2]
[310193950,1704395459722,-500.0,0.00033972,2]
[310193951,1704395459733,-144.2559515,0.00034245,3]
[310193952,1704395459748,-529.8746197,0.00034245,3]
[310193953,1704395459775,-4147.6,0.00034245,3]
[310193954,1704395459787,-442.247515,0.00034245,3]
[310193955,1704395460224,-500.0,0.00032876,2]
[310193956,1704395460235,-500.0,0.0003315,2]
[310193957,1704395460245,-500.0,0.00033424,2]
[310193958,1704395460260,-500.0,0.00033698,2]
[310193959,1704395460270,-500.0,0.00033972,2]
[310193960,1704395460280,-649.46687725,0.00034245,3]
[310193961,1704395460293,-40053.25383032,0.00034245,3]
[310193962,1704395460305,-17282.847861,0.00034245,3]
[310193963,1704395460318,-1738.78728093,0.00034245,3]
[310193964,1704395460337,-10910.4034237,0.00034245,3]
[310193965,1704395460348,-500.0,0.00034246,2]
[310193966,1704395460359,-533.73605071,0.00034246,2]
[310193967,1704395460369,-500.0,0.00034246,2]
[310193968,1704395460379,-319.57528444,0.00034246,2]
[310193976,1704395665874,-1532.8163,0.00037724,30]
[310193977,1704395665898,-654.75720927,0.00037724,120]
[310193978,1704395665923,-2146.10776479,0.00037724,120]
[310193979,1704395665947,-1401.84323398,0.00037724,120]
[310193980,1704395665969,-183.72095969,0.00037724,30]
[310193981,1704395665993,-702.0,0.00037724,120]
[310193982,1704395666016,-1996.3789771,0.00037724,30]
[310193983,1704395666039,-532.0,0.00037724,120]
[310193984,1704395666061,-606.24563587,0.00037724,120]
[310193985,1704395666083,-803.13599969,0.00037724,120]
[310193986,1704395666105,-934.66960107,0.00037724,90]
[310193987,1704395666128,-5225.02239704,0.00037724,120]
[310193988,1704395666150,-186.05733682,0.00037724,31]
[310193989,1704395666172,-364.62611346,0.00037724,30]
[310193990,1704395666195,-453.62374431,0.00037724,120]
[310193991,1704395666218,-341.22409567,0.00037724,30]
[310193992,1704395666242,-816.30256867,0.00037724,30]
[310193993,1704395666266,-700.2249279,0.00037724,120]
[310193994,1704395666289,-1098.21195729,0.00037724,30]
[310193995,1704395666311,-2000.0,0.00037724,90]
[310193996,1704395666337,-1471.55183217,0.00037724,60]
[310193997,1704395666359,-1986.04540974,0.00037724,30]
[310193998,1704395666383,-345.8788466,0.00037724,120]
[310193999,1704395666409,-257.82529002,0.00037724,120]
[310194000,1704395666434,-529.45001226,0.00037724,120]
[310194001,1704395666457,-1993.89468495,0.00037724,120]
[310194002,1704395666479,-1574.01343891,0.00037724,120]
[310194003,1704395666501,-585.72788045,0.00037724,120]
[310194004,1704395666524,-820.04785127,0.00037724,120]
[310194005,1704395666549,-530.63834868,0.00037724,30]
[310194006,1704395666571,-1054.74590664,0.00037724,120]
[310194007,1704395666593,-245.01803409,0.00037724,120]
[310194008,1704395666616,-295.07775743,0.00037724,30]
[310194009,1704395666637,-408.86428641,0.00037724,120]
[310194010,1704395666660,-1141.18673212,0.00037724,120]
[310194011,1704395666683,-282.83217923,0.00037724,120]
[310194012,1704395666704,-1100.50926727,0.00037724,120]
[310194013,1704395666728,-1017.84695514,0.00037724,35]
[310194014,1704395666750,-699.34030988,0.00037724,120]
[310194015,1704395666773,-371.63690113,0.00037724,120]
[310194016,1704395666796,-294.04037402,0.00037724,120]
[310194017,1704395666818,-211.77156505,0.00037724,120]
[310194018,1704395666842,-333.39120429,0.00037724,120]
[310194019,1704395666865,-1561.11044403,0.00037724,30]
[310194020,1704395666887,-509.12972913,0.00037724,30]
[310194021,1704395666911,-287.67993196,0.00037724,30]
[310194022,1704395666934,-586.61363896,0.00037724,120]
[310194023,1704395666958,-327.83150728,0.00037724,120]
[310194024,1704395666981,-312.96262626,0.00037724,120]
[310194025,1704395667004,-253.24320206,0.00037724,30]
[310194026,1704395667027,-413.09545234,0.00037724,30]
[310194027,1704395667054,-192.17914822,0.00037724,60]
[310194028,1704395667078,-373.8126044,0.00037724,120]
[310194029,1704395667101,-677.23087089,0.00037724,30]
[310194030,1704395667125,-489.9542195,0.00037724,120]
[310194031,1704395667149,-502.78103072,0.00037724,30]
[310194032,1704395667172,-1439.78852182,0.00037724,120]
[310194033,1704395667195,-206.36129248,0.00037724,120]
[310194034,1704395667217,-884.56029215,0.00037724,120]
[310194035,1704395667243,-709.84127105,0.00037724,120]
[310194036,1704395667267,-1193.18723362,0.00037724,30]
[310194037,1704395667290,-1234.11130152,0.00037724,120]
[310194038,1704395667312,-401.5607208,0.00037724,120]
[310194039,1704395667335,-1621.16938713,0.00037724,120]
[310194040,1704395667357,-788.05942994,0.00037724,30]
[310194041,1704395667379,-500.0,0.00037724,30]
[310194042,1704395667401,-500.0,0.00037724,30]
[310194043,1704395667422,-500.0,0.00037724,30]
[310194044,1704395667443,-200.0,0.00037724,30]
[310194045,1704395667468,-700.0,0.00037724,120]
[310194046,1704395667491,-999.999999,0.00037724,120]
[310194047,1704395667513,-4290.95661902,0.00037724,30]
[310194048,1704395667535,-568.9,0.00037724,30]
[310194049,1704395667556,-320000.0,0.00037724,30]
[310194050,1704395667578,-189000.0,0.00037724,30]
[310194051,1704395667599,-3386.0,0.00037724,120]
[310194052,1704395667622,-269.0,0.00037724,120]
[310194053,1704395667645,-1813.0,0.00037724,120]
[310194054,1704395667667,-2904.42655576,0.00037724,120]
[310194055,1704395667689,-2000.0,0.00037724,31]
[310194056,1704395667711,-1721.10804502,0.00037724,120]
[310194057,1704395667734,-2047.696329,0.00037724,30]
[310194058,1704395667756,-537.816359,0.00037724,63]
[310194059,1704395667781,-304.434167,0.00037724,30]
[310194060,1704395667804,-1962.663427,0.00037724,30]
[310194061,1704395681882,-300.0,0.00035,36]
[310194062,1704395681959,-300.0,0.00036,37]
[310194063,1704395682021,-150.0,0.00037,30]
[310194064,1704395682045,-300.0,0.00037,38]
[310194065,1704395682069,-500.0,0.00037,120]
[310194066,1704395682093,-384.63948013,0.00037,33]
[310194067,1704395682116,-500.0,0.00037,30]
[310194068,1704395682138,-500.0,0.00037,30]
[310194069,1704395682162,-150.0,0.000372,30]
[310194070,1704395682192,-193.37738756,0.000374,30]
[310194071,1704395682214,-2000.0,0.000375,30]
[310194072,1704395682263,-150.08384584,0.000378,30]
[310194073,1704395682296,-300.0,0.00038,39]
[310194074,1704395682319,-500.0,0.00038,120]
[310194075,1704395682346,-500.0,0.00038,30]
[310194076,1704395682368,-500.0,0.00038,30]
[310194077,1704395682392,-167.58,0.00038078,30]
[310194078,1704395682415,-733.13,0.00038078,30]
[310194079,1704395682438,-641.49,0.00038078,30]
[310194080,1704395682469,-641.49,0.00038328,30]
[310194081,1704395682493,-1598.92463841,0.00038356,30]
[310194082,1704395682524,-1307.59,0.00038356,60]
[310194083,1704395682550,-1040.25153614,0.000384,30]
[310194084,1704395682574,-167.58,0.00038515,60]
[310194085,1704395682601,-641.49,0.00038578,60]
[310194086,1704395682626,-150.0,0.00038606,120]
[310194087,1704395682656,-150.0,0.0003867,60]
[310194088,1704395682680,-185.41,0.0003868,60]
[310194089,1704395682702,-150.0,0.0003868,60]
[310194090,1704395682725,-150.0,0.0003868,60]
[310194091,1704395682749,-150.0,0.0003869,60]
[310194092,1704395682772,-150.0,0.0003869,60]
[310194093,1704395683085,-150.0,0.0003869,60]
[310194094,1704395683110,-150.56,0.0003869,60]
[310194095,1704395683136,-14934.40083528,0.000388,30]
[310194096,1704395683159,-641.49,0.00038828,60]
[310194097,1704395683188,-167.58,0.00038953,60]
[310194098,1704395683213,-150.0,0.0003897,60]
[310194099,1704395683237,-165.0,0.0003897,60]
[310194100,1704395683261,-150.0,0.0003897,60]
[310194101,1704395683285,-242.99,0.0003897,60]
[310194102,1704395683310,-150.0,0.0003897,60]
[310194103,1704395683332,-165.0,0.0003897,60]
[310194104,1704395683355,-181.0,0.0003897,60]
[310194105,1704395683378,-181.0,0.0003897,60]
[310194106,1704395683401,-284.35,0.0003897,60]
[310194107,1704395683423,-4785.0,0.0003897,60]
[310194108,1704395683446,-4785.0,0.0003897,60]
[310194109,1704395683468,-21495.0,0.0003897,60]
[310194110,1704395683490,-21495.0,0.0003897,60]
[310194111,1704395683513,-206.0,0.0003897,60]
[310194112,1704395683535,-172.0,0.0003897,60]
[310194113,1704395683559,-206.0,0.0003897,60]
[310194114,1704395683584,-172.0,0.0003897,60]
[310194115,1704395683607,-150.0,0.0003897,60]
[310194116,1704395683630,-150.0,0.0003897,60]
[310194117,1704395683652,-295.0,0.0003897,60]
[310194118,1704395683675,-295.0,0.0003897,60]
[310194119,1704395683697,-1633.0,0.0003897,60]
[310194120,1704395683719,-1633.0,0.0003897,60]
[310194121,1704395683741,-398.0,0.0003897,60]
[310194122,1704395683765,-398.0,0.0003897,60]
[310194123,1704395683788,-448.0,0.0003897,60]
[310194124,1704395683810,-448.0,0.0003897,60]
[310194125,1704395683833,-452.0,0.0003897,60]
[310194126,1704395683857,-452.0,0.0003897,60]
[310194127,1704395683882,-2005.0,0.0003897,60]
[310194128,1704395683905,-2005.0,0.0003897,60]
[310194129,1704395683928,-954.0,0.0003897,60]
[310194130,1704395683950,-954.0,0.0003897,60]
[310194131,1704395683974,-150.0,0.0003898,60]
[310194132,1704395683997,-165.0,0.0003898,60]
[310194133,1704395684020,-150.0,0.0003898,60]
[310194134,1704395684045,-150.0,0.0003898,60]
[310194135,1704395684068,-150.0,0.0003898,60]
[310194136,1704395684090,-165.0,0.0003898,60]
[310194137,1704395684113,-150.0,0.0003898,60]
[310194138,1704395684139,-165.0,0.0003898,60]
[310194139,1704395684173,-165.59,0.0003898,60]
[310194140,1704395684199,-181.0,0.0003898,60]
[310194141,1704395684223,-181.0,0.0003898,60]
[310194142,1704395684250,-181.0,0.0003898,60]
[310194143,1704395684275,-182.96,0.0003898,60]
[310194144,1704395684300,-150.0,0.0003898,60]
[310194145,1704395684325,-4785.0,0.0003898,60]
[310194146,1704395684353,-4785.0,0.0003898,60]
[310194147,1704395684377,-4785.0,0.0003898,60]
[310194148,1704395684402,-4787.4,0.0003898,60]
[310194149,1704395684428,-21495.0,0.0003898,60]
[310194150,1704395684452,-21495.0,0.0003898,60]
[310194151,1704395684479,-21495.0,0.0003898,60]
[310194152,1704395684501,-21497.34,0.0003898,60]
[310194153,1704395684526,-206.0,0.0003898,60]
[310194154,1704395684550,-172.0,0.0003898,60]
[310194155,1704395684573,-206.0,0.0003898,60]
[310194156,1704395684597,-172.0,0.0003898,60]
[310194157,1704395684620,-206.0,0.0003898,60]
[310194158,1704395684643,-172.0,0.0003898,60]
[310194159,1704395684667,-206.3,0.0003898,60]
[310194160,1704395684689,-179.35,0.0003898,60]
[310194161,1704395684713,-150.0,0.0003898,60]
[310194162,1704395684738,-152.05,0.0003898,60]
[310194163,1704395684761,-295.0,0.0003898,60]
[310194164,1704395684786,-295.0,0.0003898,60]
[310194165,1704395684809,-295.0,0.0003898,60]
[310194166,1704395684833,-295.32,0.0003898,60]
[310194167,1704395684855,-1633.0,0.0003898,60]
[310194168,1704395684901,-1633.0,0.0003898,60]
[310194169,1704395684925,-1633.0,0.0003898,60]
[310194170,1704395684949,-1635.62,0.0003898,60]
[310194171,1704395684973,-398.0,0.0003898,60]
[310194172,1704395684996,-398.0,0.0003898,60]
[310194173,1704395685021,-398.0,0.0003898,60]
[310194174,1704395685045,-405.19,0.0003898,60]
[310194175,1704395685069,-448.0,0.0003898,60]
[310194176,1704395685096,-448.0,0.0003898,60]
[310194177,1704395685119,-448.0,0.0003898,60]
[310194178,1704395685143,-455.25,0.0003898,60]
[310194179,1704395685166,-452.0,0.0003898,60]
[310194180,1704395685190,-452.0,0.0003898,60]
[310194181,1704395685214,-452.0,0.0003898,60]
[310194182,1704395685238,-460.55,0.0003898,60]
[310194183,1704395685264,-2005.0,0.0003898,60]
[310194184,1704395685290,-2005.0,0.0003898,60]
[310194185,1704395685313,-2005.0,0.0003898,60]
[310194186,1704395685337,-2005.62,0.0003898,60]
[310194187,1704395685360,-954.0,0.0003898,60]
[310194188,1704395685385,-954.0,0.0003898,60]
[310194189,1704395685410,-954.0,0.0003898,60]
[310194190,1704395685434,-960.99,0.0003898,60]
[310194191,1704395685459,-1020.0,0.00038984,31]
[310194192,1704395685481,-150.0,0.0003899,60]
[310194193,1704395685506,-165.0,0.0003899,60]
[310194194,1704395685533,-150.0,0.0003899,60]
[310194195,1704395685558,-150.0,0.0003899,60]
[310194196,1704395685769,-150.0,0.0003899,60]
[310194197,1704395685793,-165.0,0.0003899,60]
[310194198,1704395685819,-295.07,0.0003899,60]
[310194199,1704395685843,-150.0,0.0003899,60]
[310194200,1704395685868,-165.0,0.0003899,60]
[310194201,1704395685892,-216.04,0.0003899,60]
[310194202,1704395685915,-165.0,0.0003899,60]
[310194203,1704395685938,-181.0,0.0003899,60]
[310194204,1704395685962,-181.0,0.0003899,60]
[310194205,1704395685986,-181.0,0.0003899,60]
[310194206,1704395686010,-181.0,0.0003899,60]
[310194207,1704395686034,-212.5,0.0003899,60]
[310194208,1704395686059,-150.0,0.0003899,60]
[310194209,1704395686083,-4785.0,0.0003899,60]
[310194210,1704395686108,-4785.0,0.0003899,60]
[310194211,1704395686133,-4785.0,0.0003899,60]
[310194212,1704395686156,-4785.0,0.0003899,60]
[310194213,1704395686181,-21495.0,0.0003899,60]
[310194214,1704395686205,-21495.0,0.0003899,60]
[310194215,1704395686228,-21495.0,0.0003899,60]
[310194216,1704395686252,-21495.0,0.0003899,60]
[310194217,1704395686278,-206.0,0.0003899,60]
[310194218,1704395686303,-172.0,0.0003899,60]
[310194219,1704395686326,-206.0,0.0003899,60]
[310194220,1704395686351,-172.0,0.0003899,60]
[310194221,1704395686374,-206.0,0.0003899,60]
[310194222,1704395686404,-172.0,0.0003899,60]
[310194223,1704395686431,-206.0,0.0003899,60]
[310194224,1704395686455,-172.0,0.0003899,60]
[310194225,1704395686479,-150.0,0.0003899,60]
[310194226,1704395686505,-150.0,0.0003899,60]
[310194227,1704395686531,-295.0,0.0003899,60]
[310194228,1704395686556,-295.0,0.0003899,60]
[310194229,1704395686581,-295.0,0.0003899,60]
[310194230,1704395686607,-295.0,0.0003899,60]
[310194231,1704395686632,-1633.0,0.0003899,60]
[310194232,1704395686657,-1633.0,0.0003899,60]
[310194233,1704395686682,-1633.0,0.0003899,60]
[310194234,1704395686708,-1633.0,0.0003899,60]
[310194235,1704395686732,-398.0,0.0003899,60]
[310194236,1704395686756,-398.0,0.0003899,60]
[310194237,1704395686780,-398.0,0.0003899,60]
[310194238,1704395686805,-398.0,0.0003899,60]
[310194239,1704395686829,-448.0,0.0003899,60]
[310194240,1704395686852,-448.0,0.0003899,60]
[310194241,1704395686875,-448.0,0.0003899,60]
[310194242,1704395686898,-448.0,0.0003899,60]
[310194243,1704395686922,-452.0,0.0003899,60]
[310194244,1704395686946,-452.0,0.0003899,60]
[310194245,1704395686970,-452.0,0.0003899,60]
[310194246,1704395686993,-452.0,0.0003899,60]
[310194247,1704395687017,-2005.0,0.0003899,60]
[310194248,1704395687042,-2005.0,0.0003899,60]
[310194249,1704395687067,-2005.0,0.0003899,60]
[310194250,1704395687091,-2005.0,0.0003899,60]
[310194251,1704395687114,-954.0,0.0003899,60]
[310194252,1704395687137,-954.0,0.0003899,60]
[310194253,1704395687159,-954.0,0.0003899,60]
[310194254,1704395687183,-954.0,0.0003899,60]
[310194255,1704395687208,-29768.82318826,0.00039,40]
[310194256,1704395687234,-300.0,0.00039,40]
[310194257,1704395687259,-500.0,0.00039,120]
[310194258,1704395687283,-12764.41168812,0.00039,30]
[310194259,1704395687310,-3000.0,0.00039,30]
[310194260,1704395687336,-1000.0,0.00039,120]
[310194261,1704395687360,-10000.0,0.00039,30]
[310194262,1704395687384,-1000.0,0.00039,120]
[310194263,1704395687409,-1857.270551,0.00039,30]
[310194264,1704395687434,-641.49,0.00039078,60]
[310194265,1704395687463,-1998.45292307,0.0003922,30]
[310194266,1704395687491,-2000.0,0.00039232,120]
[310194267,1704395687517,-2000.0,0.00039232,120]
[310194268,1704395687541,-2000.0,0.00039232,120]
[310194269,1704395687569,-2000.0,0.00039232,120]
[310194270,1704395687594,-511.56388274,0.00039232,120]
[310194271,1704395687619,-641.49,0.00039327,60]
[310194272,1704395687646,-167.58,0.0003939,60]
[310194273,1704395687670,-1200.0,0.000395,30]
[310194274,1704395687694,-641.49,0.00039577,60]
[310194275,1704395687721,-596.14,0.00039671,90]
[310194276,1704395687746,-827.4,0.00039671,90]
[310194277,1704395687774,-28123.18019673,0.000398,30]
[310194278,1704395687800,-1448903.74881992,0.000398,30]
[310194279,1704395687823,-167.58,0.00039827,60]
[310194280,1704395687847,-641.49,0.00039827,60]
[310194281,1704395687872,-596.14,0.0003989,91]
[310194282,1704395687897,-827.4,0.0003989,92]
[310194283,1704395687921,-10000.0,0.000399,30]
[310194284,1704395687945,-2706.0780274,0.0003998,30]